Cogmind - Beta 17.1 @@@ ROGUE MODE // 2026.09.06 @ 10:47:05 Player: McSaucyNugget Result: Destroyed by S-27 Virus with Autogun Performance ------------- Evolutions (3) 1500 Regions Visited (5) 1000 Robots Destroyed (0) 0 Value Destroyed (10) 10 Prototype IDs (1) 20 Alien Tech Used (0) 0 Bonus (1034) 1034 TOTAL SCORE: 3564 Bonus ------- Pacifist 834 Entered Garrisons 200 Cogmind --------- Core Integrity 0/700 Matter 259/300 Energy 100/100 System Corruption 3% Temperature Cool (0) Movement Core (50) Location -7/Garrison Parts ------- > --- POWER (1) -------- (None) > --- PROPULSION (4) --- (None) > --- UTILITY (6) ------ Improved Signal Interpreter Improved Terrain Scan Processor Advanced Terrain Scan Processor > --- WEAPON (2) ------- (None) > --- INVENTORY (5) ---- High-capacity Matter Pod (19) Heavy Flail Chainsword Peak State ------------ > --- POWER ------------ (None) > --- PROPULSION ------- Improved VTOL Module > --- UTILITY ---------- Improved Sensor Array Improved Signal Interpreter Improved Terrain Scan Processor Advanced Terrain Scan Processor > --- WEAPON ----------- Heavy Flail > --- INVENTORY -------- High-capacity Matter Pod Compact Matter Pod Weapon Cycler Chainsword [Rating: 21] Favorites ----------- Power Ion Engine Engine Ion Engine Propulsion Light Treads Treads Light Treads Wheel Wheel Flight Unit Improved VTOL Module Utility Improved Terrain Scan Processor Device Improved Sensor Array Storage Small Storage Unit Processor Improved Terrain Scan Processor Weapon Heavy Flail Impact Weapon Heavy Flail Build | -11 -10 -9 -8 -7 -7 ------- Run | Yrd Mat Mat Mat Fac Gar Slots Evolved 6 | . . 2 2 2 . Power . | . . . . . . Propulsion 2 | . . 1 1 . . Utility 4 | . . 1 1 2 . Weapon . | . . . . . . Parts Attached 13 | 5 2 1 4 1 . Power 1 | 1 . . . . . Engine 1 | 1 . . . . . Core . | . . . . . . Reactor . | . . . . . . Propulsion 4 | 3 . . 1 . . Treads 2 | 2 . . . . . Leg . | . . . . . . Wheel 1 | 1 . . . . . Hover . | . . . . . . Flight 1 | . . . 1 . . Utility 7 | 1 2 1 2 1 . Device 3 | . 2 . 1 . . Storage 1 | 1 . . . . . Processor 3 | . . 1 1 1 . Hackware . | . . . . . . Protection . | . . . . . . Artifact . | . . . . . . Weapon 1 | . . . 1 . . Energy Gun . | . . . . . . Energy Cannon . | . . . . . . Ballistic Gun . | . . . . . . Ballistic Cannon . | . . . . . . Launcher . | . . . . . . Special Weapon . | . . . . . . Impact Weapon 1 | . . . 1 . . Slashing Weapon . | . . . . . . Piercing Weapon . | . . . . . . Special Melee Weapon . | . . . . . . Unidentified Prototypes 1 | . . . 1 . . Parts Lost 4 | . . . 2 . 2 Power . | . . . . . . Propulsion 1 | . . . . . 1 Utility 3 | . . . 2 . 1 Weapon . | . . . . . . Highest Loss Streak 2 | . . . 2 . 2 To Critical Strikes . | . . . . . . Average Backups 1 | . . 2 3 2 2 Power . | . . 1 1 . . Propulsion . | . . . . . . Utility . | . . 1 1 1 1 Weapon . | . . . . . 1 Tool/Special . | . . . . . . Unused Backups 5 | . 1 . . 2 2 Power . | . . . . . . Propulsion . | . . . . . . Utility 4 | . 1 . . 2 1 Weapon 1 | . . . . . 1 Tool/Special . | . . . . . . Average Slot Usage (%) 40 | . 43 45 30 43 37 Engine 3 | . 12 . . . . Treads 12 | . 28 20 4 . . Flight 3 | . . . 4 7 4 Device 8 | . 2 22 10 7 5 Processor 10 | . . 2 9 20 23 Impact Weapon 2 | . . . . 7 4 Peak Build Rating 21 | 3 5 7 16 21 20 Average Rating 9 | 2 3 4 7 18 16 On Entrance 8 | . 3 4 6 16 20 Avg Prop Armor Cover (%) 34 | . 37 36 29 . . Naked Turns . | . . . . . . Heaviest Build 10 | 10 5 2 4 4 4 Greatest Support 40 | 40 40 3 5 5 5 Greatest Overweight (x) 3 | 3 1 . . . . Average Overweight (x) . | . . . . . . Largest Inventory Capacity 8 | 8 5 5 5 5 5 Average Capacity 5 | 5 5 5 5 5 5 Most Carried 4 | 2 2 2 4 4 3 Average Carried 1 | . 1 2 3 2 2 Final Capacity 5 | 5 5 5 5 5 5 Final Carried 3 | . 2 2 3 2 3 Class Distribution -------------------- 100% | Mutant Dominant Class ---------------- Mutant | -10/Materials Mutant | -9/Materials Mutant | -8/Materials Mutant | -7/Factory Mutant | -7/Garrison Resources | -11 -10 -9 -8 -7 -7 ----------- Run | Yrd Mat Mat Mat Fac Gar Matter Collected 299 | 199 . 100 . . . Remotely . | . . . . . . Salvage Created . | . . . . . . Parts . | . . . . . . Haulers Intercepted . | . . . . . . Recyclers Shooed . | . . . . . . Parts Field Recycled . | . . . . . . Retrieved Matter . | . . . . . . Parts Self-Destructed . | . . . . . . Prevented . | . . . . . . Parts Restored . | . . . . . . Kills | -11 -10 -9 -8 -7 -7 ------- Run | Yrd Mat Mat Mat Fac Gar Combat Hostiles Destroyed . | . . . . . . Classes Destroyed . | . . . . . . Best Kill Streak . | . . . . . . Combat Bots Only . | . . . . . . Max Kills in Single Turn . | . . . . . . Gunslinging . | . . . . . . Exploded . | . . . . . . Melee . | . . . . . . Uniques/NPCs Destroyed . | . . . . . . Combat | -11 -10 -9 -8 -7 -7 -------- Run | Yrd Mat Mat Mat Fac Gar Hostile Shots Fired 196 | . . 30 55 9 102 Missed 94 | . . 12 27 6 49 Hits 102 | . . 18 28 3 53 Projectile 102 | . . 18 28 3 53 Critical Strikes 2 | . . . . . 2 Damage Taken 1240 | . . 147 256 44 793 Core 858 | . . 39 115 31 673 Absorbed by Shields 27 | . . . . . 27 Core Remaining (%) 92 | 100 100 90 79 . . Volleys Fired . | . . . . . . Largest . | . . . . . . Hottest . | . . . . . . Shots Fired . | . . . . . . Gun . | . . . . . . Cannon . | . . . . . . Launcher . | . . . . . . Special . | . . . . . . Kinetic . | . . . . . . Thermal . | . . . . . . Explosive . | . . . . . . Electromagnetic . | . . . . . . Robot Hit Streak . | . . . . . . Robot Miss Streak . | . . . . . . Penetration Max . | . . . . . . Secondary Targets . | . . . . . . Shots Hit Robots . | . . . . . . Core Hits . | . . . . . . Critical Kills . | . . . . . . Critical Parts Destroyed . | . . . . . . Critical Strikes . | . . . . . . Melee Attacks 1 | . . . 1 . . Impact 1 | . . . 1 . . Slashing . | . . . . . . Piercing . | . . . . . . Sneak Attacks . | . . . . . . Combat Hostiles . | . . . . . . Follow-up Attacks . | . . . . . . Damage Inflicted 3 | . . . . . 3 Guns . | . . . . . . Cannons . | . . . . . . Explosions . | . . . . . . Melee . | . . . . . . Ramming 3 | . . . . . 3 Kinetic . | . . . . . . Thermal . | . . . . . . Explosive . | . . . . . . Electromagnetic . | . . . . . . Impact . | . . . . . . Slashing . | . . . . . . Piercing . | . . . . . . Highest Corruption 3 | . . . 2 2 3 Average Corruption 2 | . . . 2 2 3 Corruption Purged . | . . . . . . Corruption Blocked . | . . . . . . Effects 6 | . . . 1 2 3 Matter Fused 2 | . . . . 2 . Energy Discharges 2 | . . . 1 . 1 Parts Fused 1 | . . . . . 1 Data Loss (minor) 1 | . . . . . 1 Overload Shots . | . . . . . . Overflow Damage . | . . . . . . Projectiles . | . . . . . . Explosions . | . . . . . . Melee . | . . . . . . Knockbacks . | . . . . . . Impact . | . . . . . . Kinetic . | . . . . . . Secondary . | . . . . . . Self-Inflicted Damage 1 | . . . . . 1 Shots . | . . . . . . Rammed 2 | . . . . . 2 Targets Rammed 2 | . . . . . 2 Kicked . | . . . . . . Crushed . | . . . . . . Highest Temperature 2 | . . . . . 2 Average Temperature 2 | . . . . . 2 Received Heat Transfer 213 | . . . 45 27 141 Siege Activations . | . . . . . . Martial Activations . | . . . . . . Shielding Activations . | . . . . . . Robots Disrupted . | . . . . . . Combat Hostiles . | . . . . . . Robots Corrupted . | . . . . . . Combat Hostiles . | . . . . . . Parts Fried . | . . . . . . Impact Corruptions . | . . . . . . Robots Melted . | . . . . . . Combat Hostiles . | . . . . . . Parts Melted . | . . . . . . Heat Transferred . | . . . . . . Parts Sabotaged . | . . . . . . Parts Stolen . | . . . . . . Parts Stripped . | . . . . . . Power Chain Reactions . | . . . . . . Alert | -11 -10 -9 -8 -7 -7 ------- Run | Yrd Mat Mat Mat Fac Gar Maximum Alert Level . | . . . . . . Low Security (%) 100 | 100 100 100 100 100 100 Level 1 . | . . . . . . Level 2 . | . . . . . . Level 3 . | . . . . . . Level 4 . | . . . . . . Level 5 . | . . . . . . High Security . | . . . . . . Max Security . | . . . . . . Peak Influence 110 | . . 20 110 49 84 Initial 49 | . . . 8 49 . Average 14 | . . 4 30 16 64 Influence Increases 263 | . . 30 135 4 94 Successful Hack 18 | . . . . 4 14 Disable Machine 15 | . . . 15 . . Anti-Garrison Action 50 | . . . . . 50 Partial Spotted 15 | . . 15 . . . Lose Combat Pursuer 165 | . . 15 120 . 30 Influence Decreases 189 | . . 10 45 114 20 Entered New Map 73 | . . . 12 61 . Time Decay 82 | . . 10 23 49 . Lost Part 30 | . . . 10 . 20 Lost Ally 4 | . . . . 4 . Squads Dispatched 2 | . . . . 2 . Investigation 2 | . . . . 2 . Extermination . | . . . . . . Reinforcement . | . . . . . . Assault . | . . . . . . Garrison . | . . . . . . Intercept . | . . . . . . Searches Triggered . | . . . . . . Construction Impeded . | . . . . . . Haulers Reinforced . | . . . . . . Active Scanning Responses . | . . . . . . Cargo Convoy Interrupts . | . . . . . . Stealth | -11 -10 -9 -8 -7 -7 --------- Run | Yrd Mat Mat Mat Fac Gar Distress Signals 1 | . . . . 1 . Communications Jammed . | . . . . . . Distress Signals . | . . . . . . Times Spotted 65 | . 4 11 14 13 23 Peak Tracking Total 22 | . 3 10 8 12 22 Tactical Retreats 5 | . . 1 3 . 1 Traps | -11 -10 -9 -8 -7 -7 ------- Run | Yrd Mat Mat Mat Fac Gar Traps Triggered 4 | . . 1 1 1 1 Indirectly . | . . . . . . Trap Hack Attempts . | . . . . . . Triggered . | . . . . . . Disarmed 4 | . 4 . . . . Reprogrammed . | . . . . . . Reused . | . . . . . . Traps Extracted . | . . . . . . Installed . | . . . . . . Triggered . | . . . . . . Machines | -11 -10 -9 -8 -7 -7 ---------- Run | Yrd Mat Mat Mat Fac Gar Machines Disabled 1 | . . . 1 . . Max in Single Turn 1 | . . . 1 . . Machines Repaired . | . . . . . . Machines Dismantled . | . . . . . . Machines Sabotaged . | . . . . . . Overloaded Fab Kills . | . . . . . . Hacking | -11 -10 -9 -8 -7 -7 --------- Run | Yrd Mat Mat Mat Fac Gar Machines Accessed 9 | . 1 . 1 6 1 Terminals 6 | . 1 . 1 3 1 Fabricators 1 | . . . . 1 . Repair Stations . | . . . . . . Recycling Units 1 | . . . . 1 . Scanalyzers . | . . . . . . Garrison Access 1 | . . . . 1 . Total Hacks 22 | . 4 . 1 15 2 Successful 14 | . 2 . 1 10 1 Failed 8 | . 2 . . 5 1 Catastrophic 2 | . . . . 1 1 Database Lockouts . | . . . . . . Manual 6 | . . . 1 5 . Terminals 13 | . 4 . 1 6 2 Fabricators 1 | . . . . 1 . Repair Stations . | . . . . . . Recycling Units 6 | . . . . 6 . Scanalyzers . | . . . . . . Garrison Access 2 | . . . . 2 . Terminal Hacks 4 | . 2 . . 1 1 Open DSF 1 | . . . . 1 . Terminal Index 1 | . 1 . . . . Disarm Traps 1 | . 1 . . . . Garrison Registry 1 | . . . . . 1 Fabricator Hacks 1 | . . . . 1 . Network Status 1 | . . . . 1 . Repair Station Hacks . | . . . . . . Recycling Unit Hacks 6 | . . . . 6 . Recycle Component 4 | . . . . 4 . Process 1 | . . . . 1 . Retrieve Matter 1 | . . . . 1 . Scanalyzer . | . . . . . . Garrison Access Hacks 1 | . . . . 1 . Unlock Access 1 | . . . . 1 . Unauthorized Hacks 2 | . . . 1 1 . Terminals 2 | . . . 1 1 . Track 1 | . . . 1 . . Assimilate 1 | . . . . 1 . Fabricators . | . . . . . . Repair Stations . | . . . . . . Recycling Units . | . . . . . . Scanalyzers . | . . . . . . Garrison Access . | . . . . . . Data Cores Recovered . | . . . . . . Used . | . . . . . . Hacking Detections 5 | . 1 . . 3 1 Full Trace Events 3 | . . . . 2 1 Feedback Events 1 | . . . . 1 . Corruption 1 | . . . . 1 . Feedback Blocked . | . . . . . . Robot Schematics Acquired . | . . . . . . Robots Built . | . . . . . . Authchips . | . . . . . . Time . | . . . . . . Total Robot Build Rating . | . . . . . . Part Schematics Acquired . | . . . . . . Parts Built . | . . . . . . Authchips . | . . . . . . Time . | . . . . . . Total Part Build Rating . | . . . . . . Part Studies Acquired . | . . . . . . Parts Repaired . | . . . . . . Time . | . . . . . . Parts Recycled 4 | . . . . 4 . Recycled Matter 30 | . . . . 30 . Retrieved Matter 30 | . . . . 30 . Retrieved Components . | . . . . . . Parts Scanalyzed . | . . . . . . Part Schematics Acquired . | . . . . . . Parts Damaged . | . . . . . . Bothacking | -11 -10 -9 -8 -7 -7 ------------ Run | Yrd Mat Mat Mat Fac Gar Used RIF Installer . | . . . . . . Robots Hacked . | . . . . . . Non-combat . | . . . . . . Combat . | . . . . . . Robot Hacks Applied . | . . . . . . Relay Couplers Released . | . . . . . . Fabnet Peak Effective % . | . . . . . . Robots Rewired . | . . . . . . Allies Hacked . | . . . . . . Hacks Repelled . | . . . . . . Allies | -11 -10 -9 -8 -7 -7 -------- Run | Yrd Mat Mat Mat Fac Gar Total Allies 1 | . . . . 1 . Largest Group 1 | . . . . 1 . Highest-Rated Group 10 | . . . . 10 . Highest-Rated Ally 10 | . . . . 10 . Total Orders . | . . . . . . Ally Attacks . | . . . . . . Total Damage . | . . . . . . Kills . | . . . . . . Allies Corrupted . | . . . . . . Allies Melted . | . . . . . . Intel | -11 -10 -9 -8 -7 -7 ------- Run | Yrd Mat Mat Mat Fac Gar Active Infowar (turns) 395 | . 22 89 63 179 42 Sensors 393 | . 20 89 63 179 42 Seismic 146 | . 20 89 37 . . Robot Analysis Total . | . . . . . . Derelict Logs Recovered . | . . . . . . Drone Launches . | . . . . . . Drone Recoveries . | . . . . . . Exploration | -11 -10 -9 -8 -7 -7 ------------- Run | Yrd Mat Mat Mat Fac Gar Turns Passed 650 | 52 181 89 93 179 56 Spaces Moved 1068 | 39 130 171 202 401 125 Core 330 | 20 33 171 77 . 29 Treads 111 | 14 97 . . . . Legs . | . . . . . . Wheels 5 | 5 . . . . . Hover . | . . . . . . Flight 622 | . . . 125 401 96 Fastest Speed 35 | 50 50 50 35 35 35 Average Speed 53 | 111 132 50 40 35 38 Slowest Speed 200 | 200 160 50 55 35 50 Overloaded Moves . | . . . . . . Propulsion Burnouts . | . . . . . . Robots Hopped 15 | . . . 13 2 . Potential Cave-ins . | . . . . . . Cave-ins Triggered . | . . . . . . Exploration Rate (%) 20 | 4 31 26 26 9 24 Regions Visited 5 Branch Regions . Pre-discovered Areas . | . . . . . . Known Exits Taken 2 | . . . 1 1 . Unknown Exits Taken 3 | 1 1 1 . . . Scrap Searched . | . . . . . . Spaces Dug . | . . . . . . Terrain Destroyed . | . . . . . . Melee . | . . . . . . Projectile . | . . . . . . AOE . | . . . . . . Terrain Rammed . | . . . . . . Walls Destroyed . | . . . . . . Machines Disabled . | . . . . . . Actions | -11 -10 -9 -8 -7 -7 --------- Run | Yrd Mat Mat Mat Fac Gar Total 1123 | 47 138 172 196 437 133 Wait 35 | . 1 . . 34 . Move 1034 | 38 129 170 176 397 124 Hop 14 | . . . 12 2 . Pick Up 5 | . 2 . . 3 . Fast Attach 14 | 5 2 2 4 1 . Attach 2 | . 1 . 1 . . Detach 7 | 2 2 . 2 . 1 Swap . | . . . . . . Drop 3 | 2 1 . . . . Fire . | . . . . . . Melee 1 | . . . 1 . . Ram 2 | . . . . . 2 Kick . | . . . . . . Crush . | . . . . . . Escape Stasis 6 | . . . . . 6 Rewire . | . . . . . . Trap . | . . . . . . Miscellaneous . | . . . . . . Route ------- -11/Scrapyard -10/Materials -9/Materials -8/Materials -7/Factory -7/Garrison (discovered 3 exits: *Fac x3) History --------- Turn | Location | Event 4 | -11/Scrapyard | Discovered new exit (range 14) 53 | -11/Scrapyard | Entered Materials 198 | -10/Materials | Discovered new exit (range 4) 234 | -10/Materials | Entered another Materials area 234 | -9/Materials | Evolved 2 slots: Propulsion x1, Utility x1 315 | -9/Materials | Discovered new exit (range 16) 323 | -9/Materials | Entered another Materials area 323 | -8/Materials | Evolved 2 slots: Propulsion x1, Utility x1 353 | -8/Materials | Build established: Mutant 412 | -8/Materials | Discovered new exit (range 12) 416 | -8/Materials | Identified exit to Factory 416 | -8/Materials | Entered Factory 416 | -7/Factory | Evolved 2 slots: Utility x2 595 | -7/Factory | Identified exit to Garrison 595 | -7/Factory | Entered Garrison 600 | -7/Garrison | Discovered new exit (range 79) 600 | -7/Garrison | Discovered new exit (range 91) 600 | -7/Garrison | Discovered new exit (range 43) 627 | -7/Garrison | Identified exit to Factory 627 | -7/Garrison | Attempted to access garrison exit controls, blocked by remote lockdown 640 | -7/Garrison | Core integrity fell below 50% 644 | -7/Garrison | Core integrity fell below 20% 651 | -7/Garrison | Destroyed by S-27 Virus with Autogun Last Messages --------------- 00627_ Remote lockdown engaged. 00629_ Imp. VTOL Module destroyed. 00630_ System corrupted: Energy discharge (-21). 00630_ Slammed into S-27 Virus. 00635_ S-27 Virus destroyed. 00637_ Imp. Sensor Array destroyed. 00638_ Slammed into G-47 Trooper. 00638_ Destabilizing: Core damaged (-21). 00642_ Critical hit (Burn: +37). Garrison Door activated. 00645_ Triggered Stasis Trap. 00645_ A bubble of rippling energy engulfs the area. 00645_ Field strength at 94. 00646_ Field strength at 88. 00647_ Field strength at 78. 00648_ Field strength at 72. 00649_ Field strength at 62. 00650_ System corrupted: Component data lost. 00650_ Field strength at 52. 00651_ Field strength at 37. Map ----- +----------------------------------------------------+ | #??# ]]]#????????# ###### " #??????????# #?? | | #??## ####????????# #????### #?????????## ### | | #???# #???????????# #??????# #?????????# | | #???# #???????????# #??????# #?????????## ### | | #???# ###????????## ##?????# #???######## #?# | | #?### #"#????????#] [#???### #???# + #?? | | #?# " "#????????#] [##### " #???# ###### #?? | | #?# " "#????????#] + " #???# #???## ### | | #?# " "#????????#] !##### " #???# #???# | | #?### #"#????????#] !#???### #???# #???## ### | | #???# ###????????## ##?????# #?###+###### #?# | | #???# #???????????# #??????# #?#"""""## + #?? | | #???# #???????????# #??????# ###" "+ # #?? | | ##### #####???????# #????### + "#### ### | | #???????# ###### " + "#?# | | #???????# + " + "#### ### | | #####+### #???????# ###### " + "+ # #?# | | #???# #?# ####????# #????### + "## + #?? | | #???# #?# + #????# ######## ###" ""#### #?? | | ##### ### ## #????# + #?#"""""#?## ### | | + #^^##+####?# ######## #?#######?# | | ####### #^^## #?# #??????# #?????????## ### | | #######+# ## ###+######## #??????????# #?# | | g ^^ #??????????# #?? | | ssss^^ ############ #?? | | s@^ #?? | | ########## ## ## s########################?? | | ???????### ## ##g ###??????????????????????? | | ???????# #??????????????????????? | | ???????# #??????????????????????? | | ???????# #??????????????????????? | | ???????# #????####??????#####???? | | ???????### ## ## ###????# #??????#"# #???# | | ?????????# ## ## #?????##"##??????#" #???# | | ?????????# ####### T#??????#" ^##### | | ?????????# + ## #??????#" + | | ?????????# #### #??????#"# ##### | | ?????????## ## ## ##??# ######??????### #???# | | ??????????# ## ## #???# #?????????????# ###?# | | ??????????# ######## #???# #?????????????# " #?# | | ??????????# #??????# #???# #?????????????# " #?# | | ??????????# ##?????# #???# #????########## " #?# | | ??????????# T#?????# #???# #????# + ###?# | | ??????????# ##?????# #???# #????# ##### ## #???# | | ########### #??????# #####+##???# #???# ## #???? | | ^^#???#### [%= #???# #???# # #???? | | ^^#???# + * #####+#####+## #???? | | ###########++#???# ##### ## #???? | | ??????????# #???# ]#??# ## ##### #####+####???? | | ??????????# #???# ]#??# ## #???# #???# #??????? | +----------------------------------------------------+ Best States ------------- Heat Dissipation 34 Energy Generation 10 Energy Capacity 250 Matter Stores 300 Matter Capacity 300 Sight Range 16 Robot Scan Range 15 Terrain Scan Density 310 Evasion (%) 63 Recoil Reduction 2 Item Schematics ----------------- None Robot Schematics ------------------ None Fabricated ------------ Nothing Repaired ---------- Nothing Studied --------- None Alien Tech Used ----------------- None Achievements -------------- None Challenges ------------ None Game ------ Seed DispersionBottomlessModule Manual? 0 Play Time 00:12:19 Cumulative 361.4 hours Start 2026.09.06 @ 10:34:47 End 2026.09.06 @ 10:47:05 Sessions 1 Manual Loads 0 Difficulty Rogue Special Mode None Game No. 145 Rogue 145 Adventurer 0 Explorer 0 Win Type - Total 37 Types 12/5/7/2/1/1/3/2/2/2 Lore% 84 Gallery% 80 Achievement% 76 Wizard Run 0 Options --------- Layout 0 ASCII 0 Keyboard 1 Movement Vi Keybinds 0 Fullscreen 2 Font 24/Smallcaps Map View 76x50 Zoom Use 0% Tactical HUD 1 Map Filters NONE Filters NONE Steam 1 RUN: c9788db2-da97-4ea4-b015-fa43ba285426